bitfinex/quotes_SOLUSD_20220207
["timestamp","ask_amount","ask_price","bid_price","bid_amount"]
[1644265698670,18.482,120.22,120.13,60.5311844]
[1644265699471,18.482,120.22,120.13,60.2811844]
[1644265700473,18.732,120.22,120.13,60.2811844]
[1644265701275,18.482,120.22,120.13,60.2811844]
[1644265701474,30.0402001,120.22,120.13,47.7991844]
[1644265701872,64.78712867,120.22,120.13,47.7991844]
[1644265702073,64.78712867,120.22,120.13,48.0491844]
[1644265702574,53.47892857,120.22,120.13,47.7991844]
[1644265702773,53.22892857,120.22,120.13,48.0491844]
[1644265702974,45.0821,120.22,120.13,48.0491844]
[1644265703877,12.4801,120.24,120.13,60.5315844]
[1644265704073,18.4801,120.24,120.14,24.1671]
[1644265704276,18.4801,120.24,120.14,24.4171]
[1644265704675,18.4801,120.24,120.15,39.87562349]
[1644265705074,18.7301,120.24,120.15,40.12562349]
[1644265706076,18.7301,120.24,120.16,12.4789]
[1644265706277,18.7301,120.24,120.16,12.7289]
[1644265707179,18.7301,120.24,120.17,44.90565659]
[1644265707577,18.7301,120.24,120.17,45.15565659]
[1644265707780,18.7301,120.24,120.17,45.17965659]
[1644265712385,40.72580096,120.24,120.17,45.15565659]
[1644265712887,30.84692857,120.24,120.17,44.90565659]
[1644265713086,30.84692857,120.24,120.16,0.024]
[1644265713286,24.0147,120.23,120.16,0.024]
[1644265713489,12.4844,120.21,120.16,0.024]
[1644265713686,18.7344,120.21,120.14,0.024]
[1644265713889,2.14682857,120.2,120.13,0.024]
[1644265714086,8.14682857,120.2,120.13,45.65575046]
[1644265714289,8.39682857,120.2,120.13,45.65575046]
[1644265714887,12.4858,120.18,120.13,45.65575046]
[1644265715088,12.4858,120.18,120.13,45.90575046]
[1644265715388,12.7358,120.18,120.13,45.90575046]
[1644265715590,6.0,120.2,120.13,45.90575046]
[1644265715789,29.3128,120.21,120.13,45.65575046]
[1644265715989,31.989533,120.21,120.13,0.024]
[1644265716190,24.60112857,120.2,120.13,0.024]
[1644265716591,30.60112857,120.2,120.13,0.024]
[1644265716792,30.85112857,120.2,120.13,0.024]
[1644265717390,28.7043,120.2,120.13,0.024]
[1644265718793,18.7343,120.2,120.13,0.024]
[1644265719692,18.7343,120.2,120.12,38.4475422]
[1644265719893,18.7343,120.2,120.12,38.4715422]
[1644265720896,18.7343,120.2,120.12,38.2215422]
[1644265721093,18.7343,120.2,120.12,38.4715422]
[1644265721595,10.97717612,120.19,120.12,0.024]
[1644265721798,12.4881,120.17,120.1,1.18097135]
[1644265722004,12.4881,120.17,120.11,0.024]
[1644265722199,18.7381,120.17,120.09,1.20497135]
[1644265722394,18.7381,120.17,120.1,1.18097135]
[1644265722596,18.7381,120.17,120.11,45.1137868]
[1644265722818,18.7381,120.17,120.11,45.3637868]
[1644265723017,18.7381,120.17,120.11,45.1137868]
[1644265723819,60.83917593,120.17,120.1,0.024]
[1644265724016,9.97,120.16,120.09,1.18097135]
[1644265724217,12.4925,120.14,120.08,1.20497135]
[1644265724422,12.4925,120.14,120.07,1.18097135]
[1644265724619,12.7425,120.14,120.07,7.18097135]
[1644265724819,12.7425,120.14,120.08,38.16521999]
[1644265725222,12.4925,120.14,120.08,38.41521999]
[1644265725419,12.4882,120.16,120.08,39.59619134]
[1644265725627,12.4882,120.16,120.08,39.62019134]
[1644265725818,22.7082,120.16,120.08,38.18921999]
[1644265726019,28.7082,120.16,120.08,38.43921999]
[1644265726419,28.7082,120.16,120.08,39.62019134]
[1644265727025,28.7082,120.16,120.08,38.43921999]
[1644265727622,30.85502857,120.16,120.08,38.18921999]
[1644265727824,66.93236433,120.16,120.08,38.43921999]
[1644265729225,66.68236433,120.16,120.08,38.43921999]
[1644265730627,30.85502857,120.16,120.08,38.18921999]
[1644265730833,28.7082,120.16,120.08,38.43921999]
[1644265731439,28.4582,120.16,120.08,38.43921999]
[1644265732131,28.4582,120.16,120.08,38.18921999]
[1644265732333,66.65666519,120.16,120.08,38.18921999]
[1644265732731,64.50983662,120.16,120.08,38.18921999]
[1644265732930,66.65666519,120.16,120.08,38.18921999]
[1644265734037,66.90666519,120.16,120.08,38.18921999]
[1644265735242,42.96466519,120.16,120.08,38.18921999]
[1644265735436,18.4882,120.16,120.08,38.43921999]
[1644265735644,12.4882,120.16,120.08,38.43921999]
[1644265736739,36.4019,120.16,120.08,38.43921999]
[1644265737342,36.4019,120.16,120.08,38.18921999]
[1644265738642,42.4019,120.16,120.08,38.18921999]
[1644265738842,42.4019,120.16,120.08,38.43921999]
[1644265739446,36.4019,120.16,120.08,38.43921999]
[1644265741844,36.4019,120.16,120.08,38.18921999]
[1644265742046,44.54872857,120.16,120.08,38.18921999]
[1644265745051,42.4019,120.16,120.08,38.18921999]
[1644265745650,52.3719,120.16,120.08,38.18921999]
[1644265745849,52.3719,120.16,120.08,38.43921999]
[1644265746048,46.3719,120.16,120.08,39.62019134]
[1644265746250,46.1219,120.16,120.08,38.43921999]
[1644265747051,46.1219,120.16,120.08,39.62019134]
[1644265748550,46.3719,120.16,120.09,1.18097135]
[1644265748750,46.3719,120.16,120.09,1.45497135]
[1644265749352,22.4582,120.16,120.09,1.45497135]
[1644265749552,12.4882,120.16,120.09,1.45497135]
[1644265750055,12.4882,120.16,120.1,1.18097135]
[1644265750256,12.4882,120.16,120.1,1.43097135]
[1644265750457,61.842,120.21,120.1,1.43097135]
[1644265750660,94.71,120.2,120.07,1.4419729]
[1644265750854,2.14682857,120.17,120.07,1.4419729]
[1644265751056,9.97,120.16,120.07,1.4419729]
[1644265751257,24.3638,120.15,120.07,1.4419729]
[1644265751454,22.4615,120.14,120.07,1.4419729]
[1644265751653,22.4615,120.14,120.08,36.85167468]
[1644265752052,28.7115,120.14,120.08,36.85167468]
[1644265752252,28.7115,120.14,120.07,1.4419729]
[1644265752453,47.75367121,120.14,120.07,1.4419729]
[1644265752654,23.151,120.13,119.98,23.6485]
[1644265752853,26.6311,120.12,119.98,23.6485]
[1644265753053,22.8023,120.11,119.98,23.6485]
[1644265753258,5.18659368,120.09,119.99,34.48145911]
[1644265753456,9.97,120.08,120.0,0.024]
[1644265753654,15.97,120.08,120.0,0.024]
[1644265753854,12.5017,120.07,120.0,0.024]
[1644265754058,9.97,120.06,119.99,34.48145911]
[1644265754254,12.36682857,120.06,119.99,34.50545911]
[1644265754653,16.22,120.06,119.99,34.50545911]
[1644265755658,12.5024,120.04,119.99,34.50545911]
[1644265755859,22.4724,120.04,119.99,34.50545911]
[1644265756257,22.7224,120.04,119.99,34.50545911]
[1644265756480,12.7524,120.04,119.99,34.50545911]
[1644265757862,9.97,120.06,119.99,34.50545911]
[1644265758058,27.2024,120.12,119.99,40.75545911]
[1644265758258,9.97,120.12,120.0,23.3994]
[1644265758461,9.97,120.12,120.01,0.024]
[1644265758659,22.4625,120.12,120.01,0.024]
[1644265758860,22.4625,120.12,120.01,41.77435439]
[1644265759060,22.4625,120.12,120.03,47.31830478]
[1644265759262,28.08377752,120.11,120.03,47.31830478]
[1644265759561,0.32055748,120.06,120.01,0.024]
[1644265759761,10.29055748,120.06,120.0,0.024]
[1644265759963,9.97,120.06,119.98,0.024]
[1644265760161,47.6226,120.1,119.98,12.5226]
[1644265760363,9.97,120.08,119.99,0.024]
[1644265760562,9.97,120.08,119.99,47.22128292]
[1644265760762,10.22,120.08,120.0,0.024]
[1644265760965,22.7172,120.08,120.0,0.024]
[1644265762366,4.165,120.11,120.0,0.024]
[1644265762568,2.14682857,120.13,120.0,24.5944]
[1644265762770,2.14682857,120.13,120.01,9.994]
[1644265762966,9.97,120.16,120.02,24.5704]
[1644265763166,15.97,120.16,120.03,0.024]
[1644265763368,15.97,120.16,120.03,46.70893054]
[1644265763569,32.00331467,120.15,120.03,52.68493054]
[1644265763768,38.00331467,120.15,120.05,38.91277301]
[1644265763987,50.49371467,120.15,120.05,38.91277301]
[1644265764187,50.49371467,120.15,120.05,39.16277301]
[1644265764589,12.7404,120.15,120.05,39.16277301]
[1644265765193,0.25,120.15,120.05,51.65387301]
[1644265765391,9.97,120.16,120.05,51.65387301]
[1644265765991,116.95604617,120.18,120.05,51.65387301]
[1644265766193,118.79304617,120.18,120.05,51.65387301]
[1644265766691,119.04304617,120.18,120.06,0.024]
[1644265766891,12.4889,120.16,120.07,12.4887]
[1644265767092,53.98454023,120.16,120.08,42.13744488]
[1644265767291,78.79820413,120.16,120.08,42.13744488]
[1644265767692,87.4497503,120.16,120.08,42.11344488]
[1644265767893,89.59657887,120.16,120.08,42.11344488]
[1644265768597,54.10093864,120.16,120.08,42.11344488]
[1644265768997,39.94939247,120.16,120.08,42.11344488]
[1644265769197,25.35572857,120.16,120.08,42.11344488]
[1644265769698,23.2089,120.16,120.08,42.11344488]
[1644265770499,52.90762057,120.16,120.08,42.11344488]
[1644265770698,23.2089,120.16,120.08,42.11344488]
[1644265771100,23.2089,120.16,120.08,42.13744488]
[1644265772100,17.2089,120.16,120.08,42.38744488]
[1644265772301,17.2089,120.16,120.08,42.13744488]
[1644265772501,23.2089,120.16,120.08,42.13744488]
[1644265773202,23.2089,120.16,120.08,42.38744488]
[1644265773402,17.2089,120.16,120.08,42.38744488]
[1644265773604,23.2089,120.16,120.08,42.38744488]
[1644265773803,17.2089,120.16,120.08,42.38744488]
[1644265774304,17.2089,120.16,120.08,42.13744488]
[1644265774604,23.2089,120.16,120.08,42.13744488]
[1644265776204,22.9589,120.16,120.08,42.38744488]
[1644265776609,16.9589,120.16,120.08,42.38744488]
[1644265777407,39.5388,120.16,120.08,42.13744488]
[1644265777608,45.7888,120.16,120.14,0.73059221]
[1644265777808,74.53401007,120.16,120.14,9.221e-05]
[1644265779609,59.94034617,120.16,120.14,9.221e-05]
[1644265779810,59.69034617,120.16,120.14,9.221e-05]
[1644265781218,45.7888,120.16,120.14,9.221e-05]
[1644265782214,22.9589,120.16,120.14,9.221e-05]
[1644265782815,12.9889,120.16,120.08,0.024]
[1644265783014,6.9889,120.16,120.08,0.024]
[1644265783213,12.487,120.17,120.09,12.4875]
[1644265783413,12.487,120.17,120.1,41.38766687]
[1644265783615,18.737,120.17,120.1,41.38766687]
[1644265785917,12.737,120.17,120.1,41.38766687]
[1644265786118,23.8897,120.19,120.1,41.38766687]
[1644265786316,23.8897,120.19,120.1,41.66166687]
[1644265786516,23.8897,120.19,120.11,2.13663394]
[1644265786716,23.8897,120.19,120.11,2.38663394]
[1644265786920,23.8897,120.19,120.12,38.07744762]
[1644265787119,23.8897,120.19,120.12,50.56174762]
[1644265787321,23.8897,120.19,120.12,50.81174762]
[1644265787518,24.1397,120.19,120.12,50.81174762]
[1644265787721,12.484,120.21,120.12,50.81174762]
[1644265788322,12.482,120.22,120.12,50.81174762]
[1644265788518,18.482,120.22,120.12,50.81174762]
[1644265788717,12.482,120.22,120.12,50.81174762]
[1644265789121,23.1082,120.24,120.12,50.81174762]
[1644265789318,29.1082,120.24,120.13,22.6255]
[1644265789521,12.481,120.23,120.15,12.4809]
[1644265789720,12.731,120.23,120.16,35.29994147]
[1644265789918,6.25,120.23,120.16,35.29994147]
[1644265790120,0.25,120.23,120.16,35.29994147]
[1644265790341,24.7415,120.26,120.16,35.29994147]
[1644265790542,30.7415,120.26,120.16,35.29994147]
[1644265790943,12.4799,120.24,120.16,47.77964147]
[1644265791146,18.4799,120.24,120.16,47.77964147]
[1644265791344,41.5941,120.29,120.16,50.16627541]
[1644265791646,27.9046,120.3,120.17,24.8686]
[1644265791842,23.7456,120.3,120.17,24.8686]
[1644265792045,23.7456,120.3,120.17,31.1186]
[1644265792248,23.7456,120.3,120.18,45.49147325]
[1644265792643,29.7456,120.3,120.18,51.74147325]
[1644265792849,24.75465264,120.29,120.18,51.74147325]
[1644265793045,12.476,120.28,120.2,12.476]
[1644265793245,12.726,120.28,120.21,46.90823979]
[1644265793445,37.458856,120.27,120.21,46.90823979]
[1644265793645,6.0,120.27,120.21,46.90823979]
[1644265793847,6.25,120.27,120.21,46.90823979]
[1644265794246,0.25,120.27,120.21,46.90823979]
[1644265794447,5.75,120.27,120.17,24.8686]
[1644265794650,12.4774,120.27,120.17,25.1186]
[1644265794848,12.4774,120.27,120.17,24.8686]
[1644265795051,4.159,120.26,120.14,32.9176]
[1644265795250,4.159,120.26,120.14,33.1676]
[1644265795450,22.76817074,120.26,120.15,36.02924482]
[1644265795652,12.4814,120.23,120.16,12.4802]
[1644265795851,12.4814,120.23,120.17,35.94214127]
[1644265796151,18.4814,120.23,120.17,35.94214127]
[1644265796359,6.25,120.23,120.17,36.19214127]
[1644265796752,0.25,120.23,120.17,36.19214127]
[1644265797352,117.46023694,120.26,120.17,35.94214127]
[1644265797952,12.4811,120.23,120.17,35.94214127]
[1644265798153,18.4811,120.23,120.17,35.94214127]
[1644265798353,18.7311,120.23,120.17,35.94214127]
[1644265798560,41.59962321,120.22,120.17,35.94214127]
[1644265798760,41.84962321,120.22,120.14,22.9476]
[1644265798960,60.33202321,120.22,120.14,23.1976]
[1644265799255,2.14682857,120.21,120.09,0.024]
[1644265799455,16.27682857,120.21,120.05,70.0651]
[1644265799659,22.27682857,120.21,120.06,2.16063394]
[1644265799857,22.52682857,120.21,120.07,0.024]
[1644265800057,58.6681123,120.21,120.07,41.92269707]
[1644265800356,109.9844,120.21,120.09,12.4874]
[1644265800557,0.25,120.21,120.09,41.3858]
[1644265800761,0.25,120.21,120.1,24.98323394]
[1644265801057,16.22,120.23,120.11,2.13663394]
[1644265801257,15.97,120.23,120.11,2.38663394]
[1644265801458,45.93355968,120.22,120.12,42.24835242]
[1644265801658,12.4822,120.21,120.12,54.73275242]
[1644265801859,24.50499876,120.2,120.12,54.98275242]
[1644265802059,30.50499876,120.2,120.12,54.98275242]
[1644265802260,6.0,120.2,120.12,54.98275242]
[1644265802459,6.25,120.2,120.12,54.98275242]
[1644265802859,0.25,120.2,120.12,54.98275242]
[1644265803059,12.4847,120.19,120.12,54.98275242]
[1644265803258,45.55800042,120.18,120.12,54.98275242]
[1644265803459,45.80800042,120.18,120.12,42.24835242]
[1644265803661,51.80800042,120.18,120.12,42.24835242]
[1644265804060,18.7357,120.18,120.12,42.24835242]
[1644265804361,34.0413,120.21,120.12,42.49835242]
[1644265804560,40.0413,120.21,120.12,48.49835242]
[1644265804764,40.2913,120.21,120.12,48.49835242]
[1644265804964,40.2913,120.21,120.12,59.80635242]
[1644265805163,24.6745,120.22,120.12,59.80635242]
[1644265805368,43.1563,120.22,120.12,59.80635242]
[1644265805761,12.4818,120.22,120.12,72.29065242]
[1644265805962,23.0018,120.27,120.13,2.13663394]
[1644265806262,108.77972937,120.27,120.14,41.54444023]
[1644265806462,108.77972937,120.27,120.16,36.76908095]
[1644265806664,12.4786,120.26,120.16,42.76908095]
[1644265806865,23.3614,120.27,120.17,12.4786]
[1644265807064,2.14682857,120.29,120.17,26.5586]
[1644265807267,0.03990814,120.31,120.17,26.8086]
[1644265807464,6.1172,120.33,120.18,59.17239378]
[1644265807664,0.03990814,120.3,120.19,39.46509878]
[1644265807864,0.03990814,120.3,120.21,45.52650399]
[1644265808066,0.03990814,120.32,120.21,51.52650399]
[1644265808372,0.03990814,120.32,120.22,18.76959378]
[1644265808563,0.03990814,120.32,120.22,24.76959378]
[1644265808764,0.03990814,120.32,120.22,25.01959378]
[1644265808965,0.03990814,120.32,120.23,34.73025926]
[1644265809267,0.03990814,120.32,120.23,34.98025926]
[1644265809465,0.03990814,120.32,120.23,40.98025926]
[1644265809664,32.25865211,120.32,120.24,12.4709]
[1644265809868,32.21874397,120.32,120.24,12.4709]
[1644265810066,6.03990814,120.32,120.25,48.71516859]
[1644265810266,6.15710814,120.33,120.25,48.71516859]
[1644265810466,6.15710814,120.33,120.25,48.96516859]
[1644265810667,12.3672,120.33,120.25,48.96516859]
[1644265810868,12.3672,120.33,120.25,67.43496859]
[1644265811168,38.9698,120.37,120.25,69.57696237]
[1644265811373,0.04010199,120.33,120.25,69.57696237]
[1644265811766,0.04010199,120.36,120.25,69.57696237]
[1644265811966,0.04010199,120.36,120.26,9.97]
[1644265812167,0.04010199,120.38,120.29,12.4644]
[1644265812370,0.04010199,120.35,120.3,42.73267826]
[1644265812569,0.04010199,120.39,120.3,42.73267826]
[1644265812772,0.04010199,120.38,120.3,42.98267826]
[1644265812970,0.04010199,120.39,120.3,48.98267826]
[1644265813168,0.04010199,120.4,120.3,57.65767826]
[1644265813369,0.04010199,120.42,120.3,57.65767826]
[1644265813566,0.04010199,120.42,120.3,67.62767826]
[1644265813767,0.04010199,120.43,120.3,67.62767826]
[1644265813967,0.04010199,120.41,120.3,80.09177826]
[1644265814267,0.04010199,120.42,120.3,71.41677826]
[1644265814468,0.04010199,120.4,120.28,4.154]
[1644265814668,0.04010199,120.4,120.25,50.83382775]
[1644265814669,115.24682857,120.4,120.21,4.154]
[1644265814873,96.32550671,120.39,120.22,6.11644]
[1644265815068,4.156,120.38,120.22,6.11644]
[1644265815268,9.97,120.37,120.22,6.11644]
[1644265815472,47.68460641,120.36,120.23,45.62986796]
[1644265815772,80.3835367,120.36,120.23,51.74579796]
[1644265816070,2.14682857,120.35,120.23,51.74579796]
[1644265816269,10.01010199,120.34,120.23,51.99579796]
[1644265816498,22.48020199,120.34,120.23,64.46659796]
[1644265816670,0.04010199,120.33,120.23,70.46659796]
[1644265817475,0.04010199,120.33,120.24,9.97]
[1644265817671,12.50770199,120.36,120.26,12.4662]
[1644265817871,12.50770199,120.36,120.27,6.1139]
[1644265818070,12.50770199,120.36,120.27,12.1139]
[1644265818274,12.50770199,120.36,120.28,45.72710984]
[1644265818471,0.04010199,120.36,120.28,51.84049984]
[1644265818671,0.04010199,120.38,120.28,58.09049984]
[1644265819375,0.04010199,120.38,120.28,51.84049984]
[1644265819574,0.04010199,120.38,120.28,57.84049984]
[1644265819774,0.04010199,120.38,120.28,70.30609984]
[1644265819978,0.04010199,120.38,120.28,58.19270984]
[1644265821176,12.50560199,120.38,120.28,58.19270984]
[1644265821577,18.75560199,120.38,120.28,58.44270984]
[1644265821777,20.90243056,120.38,120.28,45.97710984]
[1644265822379,18.75560199,120.38,120.28,45.97710984]
[1644265822585,18.75560199,120.38,120.28,51.97710984]
[1644265823078,18.75560199,120.38,120.28,64.44260984]
[1644265823479,18.75560199,120.38,120.28,51.97710984]
[1644265824107,18.75560199,120.38,120.28,51.72710984]
[1644265824303,18.75560199,120.38,120.28,51.97710984]
[1644265825314,18.75560199,120.38,120.28,64.44250984]
[1644265825804,18.50560199,120.38,120.28,64.44250984]
[1644265827208,18.75560199,120.38,120.28,64.44250984]
[1644265827910,44.97464004,120.38,120.28,45.72710984]
[1644265828109,47.12146861,120.38,120.28,45.72710984]
[1644265828315,9.97,120.37,120.28,45.72710984]
[1644265828511,12.4689,120.35,120.28,45.72710984]
[1644265828709,18.7189,120.35,120.28,45.72710984]
[1644265829109,9.97,120.37,120.28,51.72710984]
[1644265829311,0.25,120.35,120.28,51.97710984]
[1644265830213,38.96058761,120.37,120.28,51.97710984]
[1644265830411,6.25,120.37,120.28,51.97710984]
[1644265830611,0.25,120.37,120.28,51.97710984]
[1644265830912,6.0,120.37,120.28,51.97710984]
[1644265831311,0.25,120.37,120.28,51.97710984]
[1644265831513,48.33743985,120.37,120.28,51.97710984]
[1644265831711,54.33743985,120.37,120.28,51.97710984]
[1644265831912,12.4675,120.36,120.28,51.97710984]
[1644265832111,18.4675,120.36,120.28,58.09049984]
[1644265832412,22.35111859,120.35,120.28,52.09049984]
[1644265832613,28.35111859,120.35,120.28,51.84049984]
[1644265832820,28.60111859,120.35,120.28,51.84049984]
[1644265834019,12.4701,120.34,120.28,51.84049984]
[1644265834217,12.7201,120.34,120.28,51.84049984]
[1644265834417,18.7201,120.34,120.28,51.84049984]
[1644265836316,18.7201,120.34,120.28,45.72710984]
[1644265839419,35.75467368,120.33,120.28,45.72710984]
[1644265839620,54.22577368,120.33,120.28,51.84049984]
[1644265839818,18.7211,120.33,120.28,51.84049984]
[1644265840027,18.7211,120.33,120.28,45.72710984]
[1644265840218,18.7211,120.33,120.28,51.84049984]
[1644265841019,12.7211,120.33,120.28,51.84049984]
[1644265841221,0.25,120.33,120.28,51.84049984]
[1644265841620,18.7188,120.35,120.28,51.84049984]
[1644265842420,18.7188,120.35,120.28,45.72710984]
[1644265843821,41.60968258,120.35,120.28,45.72710984]
[1644265844021,18.7188,120.35,120.28,45.72710984]
[1644265846429,18.2188,120.35,120.28,45.72710984]
[1644265847528,35.41340624,120.34,120.23,58.6026]
[1644265847729,12.4729,120.31,120.23,46.1317]
[1644265847929,12.4729,120.31,120.23,52.24763]
[1644265848128,18.7229,120.31,120.23,52.24763]
[1644265849129,18.7229,120.31,120.23,52.49763]
[1644265849328,18.4729,120.31,120.23,52.49763]
[1644265849530,18.4729,120.31,120.24,40.27991916]
[1644265849731,18.4729,120.31,120.24,46.64533916]
[1644265850930,18.7229,120.31,120.24,46.64533916]
[1644265851536,18.4729,120.31,120.24,46.64533916]
[1644265852633,18.4729,120.31,120.24,40.52991916]
[1644265852834,18.7229,120.31,120.24,40.52991916]
[1644265853338,18.5229,120.31,120.24,40.52991916]
[1644265855035,12.5229,120.31,120.24,40.52991916]
[1644265855437,12.5229,120.31,120.24,53.00091916]
[1644265855839,18.5229,120.31,120.24,53.00091916]
[1644265856540,12.5229,120.31,120.24,53.00091916]
[1644265856938,18.5229,120.31,120.24,53.00091916]
[1644265857840,12.5229,120.31,120.24,53.00091916]
[1644265858641,18.5229,120.31,120.24,53.00091916]
[1644265858842,12.5229,120.31,120.24,53.00091916]
[1644265859441,18.5229,120.31,120.24,40.27991916]
[1644265859642,51.78113854,120.31,120.24,40.27991916]
[1644265859940,61.75113854,120.31,120.24,40.27991916]
[1644265860144,63.89796711,120.31,120.24,40.27991916]
[1644265861043,30.63972857,120.31,120.24,40.27991916]
[1644265862042,46.80544446,120.3,120.24,40.27991916]
[1644265862242,12.476,120.29,120.24,40.27991916]
[1644265862741,18.726,120.29,120.24,40.27991916]
[1644265863742,51.83213957,120.29,120.19,35.4025]
[1644265863944,51.83213957,120.29,120.19,29.04437]
[1644265864145,9.97,120.28,120.19,6.11797]
[1644265864343,12.4786,120.26,120.19,6.11797]
[1644265864745,18.7286,120.26,120.19,6.11797]
[1644265864944,18.7286,120.26,120.18,24.0976]
[1644265865347,18.7286,120.26,120.18,24.3476]
[1644265865545,18.7286,120.26,120.19,34.70382906]
[1644265866147,18.4786,120.26,120.19,34.95382906]
[1644265866343,12.7286,120.26,120.19,34.95382906]
[1644265866548,0.25,120.26,120.19,34.95382906]
[1644265867045,42.435,120.27,120.19,34.95382906]
[1644265867244,42.685,120.27,120.19,40.95382906]
[1644265867448,42.435,120.27,120.19,34.95382906]
[1644265867943,42.435,120.27,120.19,47.43012906]
[1644265868743,42.685,120.27,120.19,47.43012906]
[1644265869352,42.435,120.27,120.19,47.43012906]
[1644265870143,42.435,120.27,120.19,47.18012906]
[1644265870747,42.685,120.27,120.19,47.18012906]
[1644265871850,23.75756827,120.3,120.19,47.43012906]
[1644265872048,1.21536827,120.3,120.22,12.4726]
[1644265872250,1.17526628,120.3,120.22,12.7226]
[1644265872450,1.17526628,120.3,120.22,18.7226]
[1644265872651,1.21536827,120.31,120.23,45.58813408]
[1644265872870,11.18536827,120.32,120.23,45.83813408]
[1644265873071,12.4732,120.3,120.23,45.83813408]
[1644265873271,12.7232,120.3,120.23,45.83813408]
[1644265873471,58.72456628,120.32,120.23,58.31013408]
[1644265873673,7.17526628,120.32,120.23,64.31013408]
[1644265873876,1.17526628,120.33,120.23,64.31013408]
[1644265874075,0.04010199,120.33,120.24,24.3943]
[1644265874273,1.21536827,120.34,120.25,46.89395093]
[1644265874476,7.17526628,120.34,120.26,24.3943]
[1644265874671,7.17526628,120.34,120.27,43.19280566]
[1644265874672,1.17526628,120.33,120.27,43.19280566]
[1644265875073,1.17526628,120.33,120.27,43.44280566]
[1644265875476,7.17526628,120.34,120.27,43.44280566]
[1644265876074,12.4696,120.33,120.27,43.44280566]
[1644265877276,12.7196,120.33,120.27,43.44280566]
[1644265877677,12.4696,120.33,120.27,43.44280566]
[1644265879178,12.7196,120.33,120.27,43.44280566]
[1644265879681,12.7196,120.33,120.27,55.91130566]
[1644265880781,12.4696,120.33,120.27,55.91130566]
[1644265880982,1.17526628,120.35,120.27,55.91130566]
[1644265881180,1.17526628,120.36,120.27,55.91130566]
[1644265881382,1.21536827,120.36,120.27,61.91130566]
[1644265881580,30.45966827,120.37,120.27,61.91130566]
[1644265882280,29.28440199,120.37,120.27,61.91130566]
[1644265882580,30.45966827,120.37,120.27,61.91130566]
[1644265882981,41.75040199,120.37,120.27,61.91130566]
[1644265883182,42.92566827,120.37,120.27,61.91130566]
[1644265883482,41.75040199,120.37,120.27,61.91130566]
[1644265884182,34.42791153,120.36,120.27,55.91130566]
[1644265884383,12.4677,120.35,120.27,55.91130566]
[1644265884585,36.84676846,120.34,120.27,55.91130566]
[1644265884782,37.09676846,120.34,120.27,55.91130566]
[1644265884983,43.09676846,120.34,120.27,43.44280566]
[1644265885986,55.56566846,120.34,120.27,43.44280566]
[1644265886486,55.56566846,120.34,120.27,43.19280566]
[1644265888591,57.71249703,120.34,120.27,43.19280566]
[1644265888993,55.56566846,120.34,120.27,43.19280566]
[1644265890194,49.56566846,120.34,120.27,43.19280566]
[1644265890396,43.09676846,120.34,120.27,43.19280566]
[1644265890794,6.0,120.34,120.27,43.19280566]
[1644265890995,6.0,120.35,120.27,43.44280566]
[1644265891196,7.21536827,120.36,120.27,49.44280566]
[1644265891398,7.21536827,120.36,120.27,43.44280566]
[1644265891599,19.68396827,120.36,120.27,55.91130566]
[1644265891798,6.04010199,120.36,120.27,55.91130566]
[1644265892000,0.04010199,120.36,120.27,61.91130566]
[1644265892199,0.04010199,120.36,120.27,55.91130566]
[1644265892399,0.04010199,120.36,120.27,61.91130566]
[1644265894801,0.04010199,120.36,120.27,85.24490566]
[1644265895207,43.09696628,120.38,120.27,85.24490566]
[1644265895208,0.04010199,120.37,120.27,85.24490566]
[1644265895401,43.76239316,120.37,120.27,85.24490566]
[1644265895603,0.04010199,120.36,120.27,85.24490566]
[1644265896002,0.04010199,120.36,120.27,84.92048466]
[1644265896402,0.04010199,120.36,120.27,78.92048466]
[1644265896602,37.63475527,120.36,120.27,78.92048466]
[1644265896803,43.88475527,120.36,120.27,78.92048466]
[1644265897102,6.29010199,120.36,120.27,78.92048466]
[1644265897603,0.29010199,120.36,120.27,78.92048466]
[1644265898103,56.19410596,120.36,120.27,78.92048466]
[1644265898302,56.44410596,120.36,120.27,78.92048466]
[1644265898504,62.44410596,120.36,120.27,78.92048466]
[1644265899029,0.29010199,120.36,120.27,78.92048466]
[1644265899405,0.04010199,120.36,120.27,78.92048466]
[1644265900606,42.83905134,120.36,120.27,78.92048466]
[1644265901210,49.08905134,120.36,120.27,78.92048466]